Cogmind - Beta 14 @@@ ROGUE MODE // 2024.11.28 @ 22:08:25 Player: akira Result: Destroyed by G-47 Trooper with Particle Gun Performance ------------- Evolutions (2) 1000 Regions Visited (8) 1600 Robots Destroyed (53) 265 Value Destroyed (2603) 2603 Prototype IDs (0) 0 Alien Tech Used (0) 0 Bonus (2254) 2254 TOTAL SCORE: 7722 Bonus ------- High Alert Combat Kills 240 Follower Combat Kills 1114 Entered Garrisons 400 Used RIF Installer 500 Cogmind --------- Core Integrity 0/550 Matter 209/300 Energy 160/160 System Corruption 7% Temperature Cool (9) Movement Treading (245) Ox1 Location -8/Garrison Parts ------- > --- POWER (1) -------- Light Nuclear Core > --- PROPULSION (2) --- Light Treads Armored Treads > --- UTILITY (4) ------ Advanced Heat Sink High-capacity Storage Unit Hardened Medium Armor Plating Hardened Medium Armor Plating > --- WEAPON (4) ------- Heavy Assault Rifle Heavy Assault Rifle Minigun Advanced Remote Datajack > --- INVENTORY (20) --- Light Nuclear Core Micro Nuclear Core Light Treads Light Treads Light Treads Large Matter Pod (150) Hardened Medium Armor Plating Hacking Suite Hacking Suite Relay Coupler [NC] (28) Relay Coupler [Swarmer] (36) Relay Coupler [Heavy] (12) Heavy Rocket Launcher Remote Datajack Blade Saw Peak State ------------ > --- POWER ------------ Light Nuclear Core > --- PROPULSION ------- Armored Treads Armored Treads > --- UTILITY ---------- High-capacity Storage Unit Hardened Medium Armor Plating Relay Coupler [Grunt] Relay Coupler [Duelist] > --- WEAPON ----------- Heavy Assault Rifle Minigun Minigun Advanced Remote Datajack > --- INVENTORY -------- Light Nuclear Core Micro Nuclear Core Light Treads Light Treads Light Treads Light Treads Light Treads Advanced Heat Sink Large Matter Pod Hardened Medium Armor Plating Hardened Medium Armor Plating Hacking Suite Hacking Suite Relay Coupler [NC] Heavy Rocket Launcher Remote Datajack Remote Datajack Katana [Rating: 39] Favorites ----------- Power Light Nuclear Core Engine Ion Engine Power Core Light Nuclear Core Propulsion Light Treads Treads Light Treads Wheel Armored Wheel Utility High-capacity Storage Unit Device Improved Heat Sink Storage High-capacity Storage Unit Processor Improved Targeting Computer Hackware Relay Coupler [Sentry] Protection Hardened Medium Armor Plating Weapon Heavy Assault Rifle Energy Gun Small Laser Ballistic Gun Heavy Assault Rifle Special Weapon Remote Datajack Slashing Weapon Katana Special Melee Weapon Improved Datajack Build | -11 -10 -10 -10 -9 -8 -8 -8 -8 ------- Run | Yrd Mat Min Exi Min Mat Gar Mat Gar Slots Evolved 4 | . . . . . 4 . . . Power . | . . . . . . . . . Propulsion . | . . . . . . . . . Utility 2 | . . . . . 2 . . . Weapon 2 | . . . . . 2 . . . Parts Attached 91 | 6 4 . 2 4 13 27 20 15 Power 5 | 1 1 . . . 2 1 . . Engine 2 | 1 1 . . . . . . . Core 3 | . . . . . 2 1 . . Reactor . | . . . . . . . . . Propulsion 20 | 2 . . 1 2 4 3 5 3 Treads 12 | 2 . . . 1 . 2 4 3 Leg . | . . . . . . . . . Wheel 8 | . . . 1 1 4 1 1 . Hover . | . . . . . . . . . Flight . | . . . . . . . . . Utility 31 | 1 3 . 1 . 5 7 7 7 Device 8 | . 2 . . . 2 3 . 1 Storage 3 | 1 1 . 1 . . . . . Processor 1 | . . . . . 1 . . . Hackware 9 | . . . . . . 2 5 2 Protection 10 | . . . . . 2 2 2 4 Artifact . | . . . . . . . . . Weapon 35 | 2 . . . 2 2 16 8 5 Energy Gun 5 | 1 . . . . 1 3 . . Energy Cannon . | . . . . . . . . . Ballistic Gun 18 | 1 . . . 2 1 7 5 2 Ballistic Cannon . | . . . . . . . . . Launcher . | . . . . . . . . . Special Weapon 4 | . . . . . . . 2 2 Impact Weapon . | . . . . . . . . . Slashing Weapon 6 | . . . . . . 4 1 1 Piercing Weapon . | . . . . . . . . . Special Melee Weapon 2 | . . . . . . 2 . . Unidentified Prototypes . | . . . . . . . . . Parts Lost 12 | . . . . . 1 7 2 2 Power . | . . . . . . . . . Propulsion 4 | . . . . . . 2 2 . Utility 1 | . . . . . 1 . . . Weapon 7 | . . . . . . 5 . 2 Highest Loss Streak 5 | . . . . . 1 5 1 1 To Critical Strikes . | . . . . . . . . . Average Slot Usage (%) 95 | . 93 86 85 97 94 95 98 98 Engine 4 | . 14 14 14 14 . . . . Core 6 | . . . . . 8 9 9 9 Treads 14 | . 28 28 21 14 . 7 13 17 Wheel 6 | . . . 6 13 18 9 4 . Device 7 | . 8 14 14 14 4 8 2 3 Storage 10 | . 14 14 14 14 9 9 9 9 Processor 1 | . . . . . 8 1 . . Hackware 7 | . . . . . . 4 20 9 Protection 6 | . . . . . 13 11 3 13 Energy Gun 2 | . 14 1 . . 6 3 . . Ballistic Gun 21 | . 14 14 14 25 24 21 26 26 Special Weapon 2 | . . . . . . . 6 6 Slashing Weapon 2 | . . . . . . 6 2 2 Peak Build Rating 39 | 6 9 9 9 13 28 29 39 39 Average Rating 23 | 5 7 8 9 12 24 26 33 36 On Entrance 15 | . 6 9 9 9 13 28 29 39 Naked Turns . | . . . . . . . . . Heaviest Build 76 | 12 28 28 47 52 68 62 67 76 Greatest Support 40 | 40 40 40 40 40 32 24 40 40 Greatest Overweight (x) 5 | . . . 2 3 5 5 4 1 Average Overweight (x) 2 | . . . 1 2 1 3 2 1 Largest Inventory Capacity 20 | 8 15 15 20 20 20 20 20 20 Average Capacity 18 | 7 10 15 17 20 20 20 20 20 Most Carried 20 | 6 8 14 15 20 20 20 20 20 Average Carried 16 | 3 7 12 14 19 18 19 19 17 Final Capacity 20 | 8 15 15 20 20 20 20 20 20 Final Carried 20 | 6 8 14 15 20 20 20 18 15 Class Distribution -------------------- 35% | Mutant 22% | Scavenger-Tank 13% | Bothacker-Gunner 11% | Bothacker-Tank 5% | Scavenger-Mutant 4% | Gunner 3% | Tank Dominant Class ---------------- Mutant | -10/Materials Mutant | -10/Mines Mutant | -10/Exiles Mutant | -9/Mines Tank | -8/Materials Scavenger-Tank | -8/Garrison Bothacker-Gunner | -8/Materials Scavenger-Tank | -8/Garrison Resources | -11 -10 -10 -10 -9 -8 -8 -8 -8 ----------- Run | Yrd Mat Min Exi Min Mat Gar Mat Gar Matter Collected 2275 | 146 185 44 . 172 364 417 611 336 Remotely . | . . . . . . . . . Salvage Created 2294 | . 497 102 . . 507 527 280 381 Parts 109 | . 22 4 . . 25 21 9 28 Haulers Intercepted . | . . . . . . . . . Recyclers Shooed 1 | . 1 . . . . . . . Parts Field Recycled . | . . . . . . . . . Retrieved Matter . | . . . . . . . . . Parts Self-Destructed . | . . . . . . . . . Prevented . | . . . . . . . . . Kills | -11 -10 -10 -10 -9 -8 -8 -8 -8 ------- Run | Yrd Mat Min Exi Min Mat Gar Mat Gar Combat Hostiles Destroyed 50 | . 9 2 . . 8 13 6 12 Melee 1 | . . . . . . 1 . . Guns 49 | . 9 2 . . 8 12 6 12 Classes Destroyed 5 | . 2 . . . 1 1 1 . Recycler 3 | . 1 . . . 1 . 1 . Swarmer 15 | . . . . . . 6 3 6 Grunt 26 | . 9 2 . . 5 5 2 3 Sentry 8 | . . . . . 3 2 . 3 Heavy 1 | . . . . . . . 1 . Best Kill Streak 5 | . 3 2 . . 5 5 3 4 Combat Bots Only 5 | . 2 2 . . 4 5 3 4 Max Kills in Single Turn 2 | . 1 1 . . 1 1 2 2 Gunslinging 1 | . . . . . . . 1 1 Exploded . | . . . . . . . . . Melee 1 | . . . . . . 1 . . Uniques/NPCs Destroyed . | . . . . . . . . . Combat | -11 -10 -10 -10 -9 -8 -8 -8 -8 -------- Run | Yrd Mat Min Exi Min Mat Gar Mat Gar Hostile Shots Fired 333 | . 28 9 . 4 46 110 72 64 Missed 93 | . 7 . . 1 14 30 22 19 Damage Taken 3730 | . 268 129 . 41 620 964 1089 619 Core 691 | . 44 53 . 27 200 172 95 100 Absorbed by Shields 33 | . . . . . . . . 33 Redirected to Shielding 68 | . . . . . 10 47 11 . Core Remaining (%) 75 | 100 . . . 50 . . . . Volleys Fired 179 | . 31 6 . . 26 48 39 29 Largest 4 | . 2 2 . . 4 4 3 3 Hottest 151 | . 60 60 . . 132 151 75 73 Shots Fired 441 | . 62 12 . . 86 128 84 69 Gun 420 | . 62 12 . . 86 128 71 61 Cannon . | . . . . . . . . . Launcher . | . . . . . . . . . Special 21 | . . . . . . . 13 8 Kinetic 315 | . 31 6 . . 69 77 71 61 Thermal 105 | . 31 6 . . 17 51 . . Explosive . | . . . . . . . . . Electromagnetic . | . . . . . . . . . Robot Hit Streak 18 | . 11 10 . . 17 18 5 6 Robot Miss Streak 3 | . 2 2 . . 3 3 3 3 Penetration Max . | . . . . . . . . . Secondary Targets 11 | . . 1 . . 2 2 1 5 Max Gunslinging Chain 1 | . . 1 . . 1 1 1 1 Shots Hit Robots 280 | . 47 10 . . 53 86 46 38 Core Hits 111 | . 25 6 . . 18 30 11 21 Critical Kills 1 | . . . . . . 1 . . Critical Parts Destroyed . | . . . . . . . . . Critical Strikes 2 | . . . . . . 2 . . Burn 1 | . . . . . . 1 . . Destroy 1 | . . . . . . 1 . . Melee Attacks 34 | . . . . . . 30 3 1 Impact . | . . . . . . . . . Slashing 27 | . . . . . . 23 3 1 Piercing . | . . . . . . . . . Sneak Attacks 1 | . . . . . . . 1 . Combat Hostiles . | . . . . . . . . . Follow-up Attacks . | . . . . . . . . . Damage Inflicted 3817 | . 471 96 . . 906 1126 683 535 Guns 3688 | . 471 96 . . 906 1067 613 535 Cannons . | . . . . . . . . . Explosions . | . . . . . . . . . Melee 129 | . . . . . . 59 70 . Ramming . | . . . . . . . . . Kinetic 2570 | . 178 42 . . 702 500 613 535 Thermal 1118 | . 293 54 . . 204 567 . . Explosive . | . . . . . . . . . Electromagnetic . | . . . . . . . . . Impact . | . . . . . . . . . Slashing 129 | . . . . . . 59 70 . Piercing . | . . . . . . . . . Highest Corruption 7 | . . . . . 2 2 2 7 Average Corruption 2 | . . . . . 2 2 2 5 Corruption Purged . | . . . . . . . . . Corruption Blocked . | . . . . . . . . . Effects 67 | . . . . . 3 23 15 26 Message Errors 20 | . . . . . 1 7 5 7 Matter Fused 11 | . . . . . . 2 4 5 Heat Flow Errors 7 | . . . . . 1 3 1 2 Energy Discharges 10 | . . . . . . 4 2 4 Parts Rejected 1 | . . . . . . . . 1 Data Loss (minor) 7 | . . . . . 1 3 1 2 Data Loss (major) 2 | . . . . . . 1 1 . Misfires 1 | . . . . . . . . 1 Alerts 7 | . . . . . . 3 1 3 Weapon Failures 1 | . . . . . . . . 1 Overload Shots . | . . . . . . . . . Overflow Damage . | . . . . . . . . . Projectiles . | . . . . . . . . . Explosions . | . . . . . . . . . Melee . | . . . . . . . . . Knockbacks . | . . . . . . . . . Impact . | . . . . . . . . . Kinetic . | . . . . . . . . . Secondary . | . . . . . . . . . Self-Inflicted Damage . | . . . . . . . . . Shots . | . . . . . . . . . Rammed . | . . . . . . . . . Targets Rammed . | . . . . . . . . . Kicked . | . . . . . . . . . Crushed . | . . . . . . . . . Highest Temperature 589 | . 85 11 . . 589 287 385 219 Average Temperature 130 | . 21 4 . . 205 106 174 44 Received Heat Transfer 1318 | . 171 75 . 9 252 342 279 190 Effects 16 | . . . . . 11 . 5 . Shutdowns 3 | . . . . . 2 . 1 . Interference 5 | . . . . . 3 . 2 . Matter Decay 1 | . . . . . 1 . . . Short Circuit 3 | . . . . . 1 . 2 . Damage (major) 2 | . . . . . 2 . . . Damage (core) 2 | . . . . . 2 . . . Siege Activations . | . . . . . . . . . Robots Corrupted . | . . . . . . . . . Combat Hostiles . | . . . . . . . . . Parts Fried . | . . . . . . . . . Impact Corruptions . | . . . . . . . . . Robots Melted . | . . . . . . . . . Combat Hostiles . | . . . . . . . . . Parts Melted 3 | . . . . . . 3 . . Heat Transferred 2495 | . 675 125 . . 444 1251 . . Parts Sabotaged . | . . . . . . . . . Parts Stolen . | . . . . . . . . . Parts Stripped . | . . . . . . . . . Power Chain Reactions . | . . . . . . . . . Alert | -11 -10 -10 -10 -9 -8 -8 -8 -8 ------- Run | Yrd Mat Min Exi Min Mat Gar Mat Gar Peak Influence 1046 | . 165 102 . 15 211 1046 808 837 Initial 509 | . . 52 . . 5 23 509 487 Average 411 | . 78 100 . 13 76 437 673 640 Maximum Alert Level 3 | . . . . . 1 3 3 3 Low Security (%) 43 | 100 100 100 . 100 91 45 . . Level 1 4 | . . . . . 8 12 . . Level 2 28 | . . . . . . 11 55 76 Level 3 23 | . . . . . . 29 44 23 Level 4 . | . . . . . . . . . Level 5 . | . . . . . . . . . High Security . | . . . . . . . . . Max Security . | . . . . . . . . . Squads Dispatched 10 | . 2 . . . 2 . 6 . Investigation 3 | . 1 . . . . . 2 . Extermination . | . . . . . . . . . Reinforcement 4 | . 1 . . . . . 3 . Assault 1 | . . . . . . . 1 . Garrison 2 | . . . . . 2 . . . Intercept . | . . . . . . . . . Searches Triggered . | . . . . . . . . . Construction Impeded . | . . . . . . . . . Haulers Reinforced . | . . . . . . . . . Active Scanning Responses . | . . . . . . . . . Cargo Convoy Interrupts . | . . . . . . . . . Stealth | -11 -10 -10 -10 -9 -8 -8 -8 -8 --------- Run | Yrd Mat Min Exi Min Mat Gar Mat Gar Distress Signals 3 | . 2 . . . . . 1 . Communications Jammed . | . . . . . . . . . Distress Signals . | . . . . . . . . . Times Spotted 109 | . 14 2 . 2 10 24 32 25 Peak Tracking Total 8 | . 5 2 . 2 5 6 5 8 Tactical Retreats 3 | . 1 . . . . 2 . . Traps | -11 -10 -10 -10 -9 -8 -8 -8 -8 ------- Run | Yrd Mat Min Exi Min Mat Gar Mat Gar Traps Triggered 16 | . . . . . 1 8 2 5 Indirectly . | . . . . . . . . . Trap Hack Attempts . | . . . . . . . . . Triggered . | . . . . . . . . . Disarmed . | . . . . . . . . . Reprogrammed . | . . . . . . . . . Reused . | . . . . . . . . . Traps Extracted . | . . . . . . . . . Installed . | . . . . . . . . . Triggered . | . . . . . . . . . Machines | -11 -10 -10 -10 -9 -8 -8 -8 -8 ---------- Run | Yrd Mat Min Exi Min Mat Gar Mat Gar Machines Disabled 12 | . . . . . . 4 7 1 Max in Single Turn 1 | . . . . . . 1 . 1 Garrison Relay 4 | . . . . . . 3 . 1 Machines Repaired . | . . . . . . . . . Machines Dismantled . | . . . . . . . . . Machines Sabotaged . | . . . . . . . . . Overloaded Fab Kills . | . . . . . . . . . Hacking | -11 -10 -10 -10 -9 -8 -8 -8 -8 --------- Run | Yrd Mat Min Exi Min Mat Gar Mat Gar Machines Accessed 20 | . 6 . 2 . 1 5 5 1 Terminals 15 | . 6 . . . . 5 3 1 Fabricators . | . . . . . . . . . Repair Stations 1 | . . . . . . . 1 . Recycling Units . | . . . . . . . . . Scanalyzers . | . . . . . . . . . Garrison Access 2 | . . . . . 1 . 1 . Total Hacks 39 | . 14 . 2 . 1 11 10 1 Successful 17 | . 4 . 2 . 1 5 5 . Failed 22 | . 10 . . . . 6 5 1 Catastrophic 6 | . 3 . . . . 2 . 1 Database Lockouts . | . . . . . . . . . Manual 19 | . 14 . . . . . 5 . Terminals 33 | . 14 . . . . 11 7 1 Fabricators . | . . . . . . . . . Repair Stations 2 | . . . . . . . 2 . Recycling Units . | . . . . . . . . . Scanalyzers . | . . . . . . . . . Garrison Access 2 | . . . . . 1 . 1 . Terminal Hacks 9 | . . . 2 . . 5 2 . Record 2 | . . . 2 . . . . . Open Door 2 | . . . . . . 2 . . Emergency Access Points 1 | . . . . . . 1 . . Terminal Index 1 | . . . . . . . 1 . Unreport Threat 1 | . . . . . . . 1 . Garrison Registry 1 | . . . . . . 1 . . Patrol Navigation 1 | . . . . . . 1 . . Fabricator Hacks . | . . . . . . . . . Repair Station Hacks . | . . . . . . . . . Recycling Unit Hacks . | . . . . . . . . . Scanalyzer . | . . . . . . . . . Garrison Access Hacks 2 | . . . . . 1 . 1 . Unlock Access 2 | . . . . . 1 . 1 . Unauthorized Hacks 6 | . 4 . . . . . 2 . Terminals 6 | . 4 . . . . . 2 . Botnet 6 | . 4 . . . . . 2 . Fabricators . | . . . . . . . . . Repair Stations . | . . . . . . . . . Recycling Units . | . . . . . . . . . Scanalyzers . | . . . . . . . . . Garrison Access . | . . . . . . . . . Data Cores Recovered 2 | . . . . . . . 2 . Used 2 | . . . . . . . 2 . Hacking Detections 12 | . 5 . . . . 4 3 . Full Trace Events 4 | . 1 . . . . 3 . . Feedback Events . | . . . . . . . . . Feedback Blocked . | . . . . . . . . . Robot Schematics Acquired . | . . . . . . . . . Robots Built . | . . . . . . . . . Authchips . | . . . . . . . . . Time . | . . . . . . . . . Total Robot Build Rating . | . . . . . . . . . Part Schematics Acquired . | . . . . . . . . . Parts Built . | . . . . . . . . . Authchips . | . . . . . . . . . Time . | . . . . . . . . . Total Part Build Rating . | . . . . . . . . . Parts Repaired . | . . . . . . . . . Time . | . . . . . . . . . Parts Recycled . | . . . . . . . . . Recycled Matter . | . . . . . . . . . Retrieved Matter . | . . . . . . . . . Retrieved Components . | . . . . . . . . . Parts Scanalyzed . | . . . . . . . . . Part Schematics Acquired . | . . . . . . . . . Parts Damaged . | . . . . . . . . . Bothacking | -11 -10 -10 -10 -9 -8 -8 -8 -8 ------------ Run | Yrd Mat Min Exi Min Mat Gar Mat Gar Used RIF Installer 1 | . . . . . . 1 . . Robots Hacked 16 | . . . . . . 5 7 4 Non-combat . | . . . . . . . . . Combat 16 | . . . . . . 5 7 4 Robot Hacks Applied 16 | . . . . . . 5 7 4 disable_weapons 1 | . . . . . . 1 . . go_dormant 1 | . . . . . . . 1 . overwrite_iff 1 | . . . . . . 1 . . formatsys_high 13 | . . . . . . 3 6 4 Relay Couplers Released 16 | . . . . . . 11 . 5 Machine Destruction 16 | . . . . . . 11 . 5 Attached 9 | . . . . . . 2 5 2 Fabnet Peak Effective % . | . . . . . . . . . Robots Rewired . | . . . . . . . . . Allies Hacked . | . . . . . . . . . Hacks Repelled . | . . . . . . . . . Allies | -11 -10 -10 -10 -9 -8 -8 -8 -8 -------- Run | Yrd Mat Min Exi Min Mat Gar Mat Gar Total Allies 16 | . . . . . . 6 6 4 Largest Group 4 | . . . . . . 4 4 3 Highest-Rated Group 215 | . . . . . . 199 215 48 Highest-Rated Ally 149 | . . . . . . 149 149 29 Total Orders . | . . . . . . . . . Ally Attacks 113 | . . . . . . 25 48 40 Total Damage 3321 | . . . . . . 816 1992 513 Kills 45 | . . . . . . 10 26 9 Allies Corrupted . | . . . . . . . . . Allies Melted 2 | . . . . . . 2 . . Intel | -11 -10 -10 -10 -9 -8 -8 -8 -8 ------- Run | Yrd Mat Min Exi Min Mat Gar Mat Gar Robot Analysis Total . | . . . . . . . . . Derelict Logs Recovered 2 | . . . . 2 . . . . Drone Launches . | . . . . . . . . . Drone Recoveries . | . . . . . . . . . Exploration | -11 -10 -10 -10 -9 -8 -8 -8 -8 ------------- Run | Yrd Mat Min Exi Min Mat Gar Mat Gar Turns Passed 6608 | 90 679 249 715 362 447 1713 1475 878 Spaces Moved 3297 | 52 304 132 490 230 232 865 685 307 Core 7 | 7 . . . . . . . . Treads 1286 | 45 304 132 222 4 . . 272 307 Legs . | . . . . . . . . . Wheels 2004 | . . . 268 226 232 865 413 . Hover . | . . . . . . . . . Flight . | . . . . . . . . . Fastest Speed 50 | 50 160 160 130 130 115 120 145 245 Average Speed 164 | 145 160 160 145 144 123 148 187 246 Slowest Speed 400 | 160 160 160 240 240 165 165 400 250 Overloaded Moves . | . . . . . . . . . Propulsion Burnouts . | . . . . . . . . . Robots Hopped . | . . . . . . . . . Cave-ins Triggered . | . . . . . . . . . Exploration Rate (%) 48 | 4 64 31 90 48 13 82 57 49 Regions Visited 8 Branch Regions 3 Pre-discovered Areas . | . . . . . . . . . Known Exits Taken 3 | . . . . 1 1 . 1 . Unknown Exits Taken 4 | 1 1 1 1 . . . . . Scrap Searched 3 | . . 1 . 2 . . . . Spaces Dug 2 | . . . . . . . 2 . Terrain Destroyed 2 | . . . . . . . 2 . Melee 2 | . . . . . . . 2 . Projectile . | . . . . . . . . . AOE . | . . . . . . . . . Terrain Rammed . | . . . . . . . . . Walls Destroyed . | . . . . . . . . . Machines Disabled . | . . . . . . . . . Actions | -11 -10 -10 -10 -9 -8 -8 -8 -8 --------- Run | Yrd Mat Min Exi Min Mat Gar Mat Gar Total 4111 | 65 440 160 491 258 333 1164 821 379 Wait 340 | . 98 16 . 18 39 109 54 6 Move 3291 | 51 303 131 489 229 232 864 685 307 Hop . | . . . . . . . . . Pick Up 66 | 8 2 6 . 6 12 15 10 7 Fast Attach 22 | 4 1 . . 1 4 7 3 2 Attach 24 | 2 . . . 1 4 6 4 7 Detach . | . . . . . . . . . Swap 45 | . 3 . 2 2 5 14 13 6 Drop 45 | . 2 1 . 1 11 15 10 5 Fire 179 | . 31 6 . . 26 48 39 29 Melee 34 | . . . . . . 30 3 1 Ram . | . . . . . . . . . Kick . | . . . . . . . . . Crush . | . . . . . . . . . Escape Stasis 65 | . . . . . . 56 . 9 Rewire . | . . . . . . . . . Trap . | . . . . . . . . . Miscellaneous . | . . . . . . . . . Route ------- -11/Scrapyard -10/Materials (discovered 2 exits: [*Mat] / [*Min]) -10/Mines (discovered 2 exits: [*Mat] / *Exi) -10/Exiles (discovered 2 exits: [*Min x2]) -9/Mines -8/Materials -8/Garrison (discovered 3 exits: *Mat x3) -8/Materials (discovered 4 exits: [*Fac x3] / Gar) -8/Garrison (discovered 2 exits: [*Fac x2]) History --------- Turn | Location | Event 10 | -11/Scrapyard | Discovered new exit (range 16) 91 | -11/Scrapyard | Entered Materials 301 | -10/Materials | Build established: Mutant 539 | -10/Materials | Discovered new exit (range 16) 709 | -10/Materials | Discovered new exit (range 16) 770 | -10/Materials | Entered Mines 842 | -10/Mines | Discovered new exit (range 12) 914 | -10/Mines | YI-UF0 nonchalantly dropped a Grenade Launcher on the ground 1013 | -10/Mines | Deemed a non-threat by the Exiles lab entrance 1013 | -10/Mines | Discovered new exit (range 5) 1019 | -10/Mines | Entered Exiles 1019 | -10/Exiles | Found Exiles lab abandoned 1400 | -10/Exiles | Discovered new exit (range 14) 1720 | -10/Exiles | Discovered new exit (range 14) 1734 | -10/Exiles | Entered Mines 1772 | -9/Mines | Joined a pair of Derelicts in attacking an 0b10 outpost 1911 | -9/Mines | Found a hidden stash of uninstalled traps 1921 | -9/Mines | Learned 2 Materials zone layouts 2011 | -9/Mines | Identified exit to Materials 2096 | -9/Mines | Entered Materials 2096 | -8/Materials | Evolved 4 slots: Utility x2, Weapon x2 2442 | -8/Materials | Garrison activated, responded to threat 2543 | -8/Materials | Identified exit to Garrison 2543 | -8/Materials | Entered Garrison 2575 | -8/Garrison | Triggered checkpoint 2628 | -8/Garrison | Core integrity fell below 50% 2708 | -8/Garrison | Garrison Relay disabled 2755 | -8/Garrison | Installed Relay Interface Framework 2989 | -8/Garrison | Lost 5 parts (2n3w) 3127 | -8/Garrison | Triggered checkpoint 3185 | -8/Garrison | Discovered new exit (range 10) 3265 | -8/Garrison | Build established: Scavenger-Mutant 3277 | -8/Garrison | Triggered checkpoint 3457 | -8/Garrison | Triggered checkpoint 3496 | -8/Garrison | Garrison Relay disabled 3532 | -8/Garrison | Discovered new exit (range 15) 3560 | -8/Garrison | Rescued HV-R5K 3600 | -8/Garrison | Rescued a captive Derelict 3642 | -8/Garrison | Build established: Scavenger-Tank 3727 | -8/Garrison | Triggered checkpoint 3817 | -8/Garrison | Discovered new exit (range 62) 3817 | -8/Garrison | Discovered new exit (range 23) 3817 | -8/Garrison | Discovered new exit (range 26) 4031 | -8/Garrison | Triggered checkpoint 4035 | -8/Garrison | Triggered checkpoint 4105 | -8/Garrison | Triggered checkpoint 4183 | -8/Garrison | Garrison Relay disabled 4256 | -8/Garrison | Entered Materials 4256 | -8/Materials | Accompanied by 1 ally (HV-R5K) 4512 | -8/Materials | Discovered new exit (range 7) 4762 | -8/Materials | Build established: Bothacker-Gunner 4804 | -8/Materials | Discovered new exit (range 11) 5056 | -8/Materials | First assault squad dispatched 5329 | -8/Materials | Core integrity fell below 20% 5330 | -8/Materials | Lost 3 allies 5404 | -8/Materials | Discovered new exit (range 3) 5731 | -8/Materials | Identified exit to Garrison 5731 | -8/Materials | Entered Garrison 5731 | -8/Garrison | Accompanied by 2 allies 5817 | -8/Garrison | Triggered checkpoint 5882 | -8/Garrison | Garrison Relay disabled 6115 | -8/Garrison | Triggered checkpoint 6117 | -8/Garrison | Lost 4 allies 6188 | -8/Garrison | Build established: Bothacker-Tank 6205 | -8/Garrison | Triggered checkpoint 6257 | -8/Garrison | Triggered checkpoint 6341 | -8/Garrison | Discovered new exit (range 10) 6395 | -8/Garrison | Triggered checkpoint 6515 | -8/Garrison | Triggered checkpoint 6543 | -8/Garrison | Discovered new exit (range 14) 6552 | -8/Garrison | Build established: Scavenger-Tank 6605 | -8/Garrison | Triggered checkpoint 6609 | -8/Garrison | Destroyed by G-47 Trooper with Particle Gun Last Messages --------------- 06468_ FU 4JTP8YOZU9TQ<32WWXVIGTU 06528_ S-10 Pest destroyed. 06531_ System corrupted: Arm. Treads rejected. 06534_ S-10 Pest destroyed. 06534_ Switching to secondary target: S-10 Pest. 06538_ S-10 Pest destroyed. 06538_ Switching to secondary target: S-10 Pest. 06538_ S-10 Pest destroyed. 06541_ Acquired 16 matter. 06543_ Acquired 19 matter. 06543_ EXIT=FOUND 06546_ NSWIA:S#RP6 SLVCP#PRG#NCQRLC9H//WSU 06576_ System corrupted: Heat flow error (+252). 06600_ System corrupted: Matter fused (-8). 06605_ Beams of light sweep through the air. An alarm sounds. 06605_ C-30 ARC bursts open, deploying its payload. 06605_ L-31 Rogue unfolds itself. 06605_ G-47 Trooper unfolds itself. 06607_ G-47 Trooper destroyed. Map ----- +----------------------------------------------------+ | ??????????????????????#*%#?????????????????# # | | ??????????????????????# ################### # | | ??????????????????????#== # | | ??????????????????????# # | | ??????????????????????# ###################### | | ??????????????????????# #????????????????????? | | ??????????????????????# #????????????????????? | | ??????????????????????# #????????????????????? | | ??????????????????????# #????????????????????? | | ??????????????????????# #????????????????????? | | ??????????????????????# #????????????????????? | | ??????????????????????# #????????????????????? | | ??????????????????????# ###??????????????????? | | ??????????????????????# #??????????????????? | | ??????????????????????# < #??????????????????? | | ??????????????????????# #??????????????????? | | ??????????????????????# ###??????????????????? | | ??????????????????????# #????????????????????? | | ??????????????????????# #????????????????????? | | ??????????????????????# #????????????????????? | | ??????????????????????# #????????????????????? | | ????????????????##????# #????????????????????? | | ????????????????#%C???# #????????????????????? | | ??????????####### g ### #????????????????????? | | ??????????# ^ * #????????????????????? | | ??????????# [%! l@ #????????????????????? | | ???????????# ###########????????????????????? | | ??????????????????????????????????????????????? | | ??????????????????????????????????????????????? | | ??????????????????????????????????????????????? | | ??????????????????????????????????????????????? | | ??????????????????????????????????????????????? | | ??????????????????????????????????????????????? | | ??????????????????????????????????????????????? | | ??????????????????????????????????????????????? | | ??????????????????????????????????????????????? | | ??????????????????????????????????????????????? | | | | | | | | | | | | | | | | | | | | | | | | | | | +----------------------------------------------------+ Best States ------------- Heat Dissipation 50 Energy Generation 15 Energy Capacity 250 Matter Stores 300 Matter Capacity 300 Sight Range 16 Terrain Scan Density 10 Armor Coverage 450 Power Shielding 66 Propulsion Shielding 33 Evasion (%) 40 Targeting Accuracy 6 Recoil Reduction 2 Relay Coupler Types 3 Relay Coupler Value 60 Item Schematics ----------------- None Robot Schematics ------------------ None Fabricated ------------ Nothing Alien Tech Used ----------------- None Achievements -------------- None Challenges ------------ None Game ------ Seed LargeFlakCompactor Manual? 0 Play Time 00:55:51 Cumulative 63.6 hours Start 2024.11.28 @ 21:04:41 End 2024.11.28 @ 22:08:25 Sessions 1 Manual Loads 0 Difficulty Rogue Special Mode None Game No. 68 Rogue 68 Adventurer 0 Explorer 0 Win Type - Total 0 Types 0/0/0/0/0/0/0/0/0 Lore% 10 Gallery% 32 Achievement% 31 Wizard Run 0 Options --------- Layout 2 ASCII 0 Keyboard 0 Movement Mouse Keybinds 0 Fullscreen 2 Font 16/SmallcapsGlow Map View 55x47 Zoom Use 6% Tactical HUD 1 Map Filters NONE Filters NONE Steam 1 RUN: fb6ca6ec-0a74-45bd-8cff-45ad4be20d1b